[Event "Juniorallsvenskan 2019, Division 1 and 2"]
[Site "Molnlycke kulturhus, Biblioteksgatan 2, Molnlycke, Sweden"]
[Date "2019.11.23"]
[Round "3.9"]
[White "Rasti, Arvin"]
[Black "Sorensen, Hampus"]
[Result "1/2-1/2"]
[TimeControl "90 minutes + 30 seconds per move from move one"]
[BlackTitle "FM"]
[WhiteFideId "1741160"]
[BlackFideId "8703884"]
[WhiteElo "2206"]
[BlackElo "2365"]

1. Nf3 {[%clk 01:30:55]} {[%emt 00:00:03]} d5 {[%clk 01:30:50]} {[%emt
00:00:11]} 2. g3 {[%clk 01:31:04]} {[%emt 00:00:21]} Bg4 {[%clk 01:30:25]}
{[%emt 00:00:55]} 3. Bg2 {[%clk 01:31:27]} {[%emt 00:00:07]} Nd7 {[%clk
01:30:19]} {[%emt 00:00:36]} 4. O-O {[%clk 01:30:44]} {[%emt 00:01:13]} c6
{[%clk 01:29:54]} {[%emt 00:00:55]} 5. c4 {[%clk 01:29:45]} {[%emt 00:01:29]}
Ngf6 {[%clk 01:28:04]} {[%emt 00:02:19]} 6. cxd5 {[%clk 01:28:13]} {[%emt
00:02:03]} cxd5 {[%clk 01:26:57]} {[%emt 00:01:36]} 7. h3 {[%clk 01:27:19]}
{[%emt 00:01:25]} Bh5 {[%clk 01:25:33]} {[%emt 00:01:54]} 8. d4 {[%clk
01:26:44]} {[%emt 00:01:05]} e6 {[%clk 01:25:06]} {[%emt 00:00:56]} 9. Bf4
{[%clk 01:26:35]} {[%emt 00:00:39]} Be7 {[%clk 01:22:54]} {[%emt 00:02:42]} 10.
Nc3 {[%clk 01:26:28]} {[%emt 00:00:37]} O-O {[%clk 01:21:25]} {[%emt 00:01:59]}
11. Qb3 {[%clk 01:22:13]} {[%emt 00:04:45]} Qb6 {[%clk 01:16:35]} {[%emt
00:05:20]} 12. Rfc1 {[%clk 01:21:22]} {[%emt 00:01:20]} Qxb3 {[%clk 01:11:54]}
{[%emt 00:05:12]} 13. axb3 {[%clk 01:21:46]} {[%emt 00:00:06]} a6 {[%clk
01:11:54]} {[%emt 00:00:30]} 14. g4 {[%clk 01:14:09]} {[%emt 00:08:07]} Bg6
{[%clk 01:12:08]} {[%emt 00:00:17]} 15. e3 {[%clk 01:13:42]} {[%emt 00:00:57]}
h5 {[%clk 01:08:15]} {[%emt 00:04:23]} 16. g5 {[%clk 01:12:55]} {[%emt
00:01:16]} Ne8 {[%clk 01:06:01]} {[%emt 00:02:44]} 17. Nb5 {[%clk 01:09:23]}
{[%emt 00:04:03]} Rd8 {[%clk 01:03:26]} {[%emt 00:03:05]} 18. Na3 {[%clk
01:09:10]} {[%emt 00:00:43]} Be4 {[%clk 01:00:47]} {[%emt 00:03:08]} 19. Nb1
{[%clk 01:06:03]} {[%emt 00:03:37]} Bd6 {[%clk 00:59:10]} {[%emt 00:02:07]} 20.
Bxd6 {[%clk 01:04:40]} {[%emt 00:01:53]} Nxd6 {[%clk 00:59:23]} {[%emt
00:00:17]} 21. Rc7 {[%clk 01:04:29]} {[%emt 00:00:41]} Nb8 {[%clk 00:57:11]}
{[%emt 00:02:43]} 22. Nbd2 {[%clk 01:04:28]} {[%emt 00:00:30]} Bf5 {[%clk
00:55:55]} {[%emt 00:01:46]} 23. Bf1 {[%clk 01:00:21]} {[%emt 00:04:37]} Rc8
{[%clk 00:54:36]} {[%emt 00:01:49]} 24. Rac1 {[%clk 01:00:34]} {[%emt
00:00:16]} Rxc7 {[%clk 00:51:52]} {[%emt 00:03:14]} 25. Rxc7 {[%clk 01:01:02]}
{[%emt 00:00:02]} Rc8 {[%clk 00:52:05]} {[%emt 00:00:17]} 26. Rxc8+ {[%clk
01:00:59]} {[%emt 00:00:33]} Nxc8 {[%clk 00:52:33]} {[%emt 00:00:02]} 27. Ne5
{[%clk 01:01:00]} {[%emt 00:00:29]} Ne7 {[%clk 00:50:42]} {[%emt 00:02:21]} 28.
Kh2 {[%clk 00:59:13]} {[%emt 00:02:17]} Nec6 {[%clk 00:50:45]} {[%emt
00:00:27]} 29. Nd3 {[%clk 00:53:31]} {[%emt 00:06:12]} Nd7 {[%clk 00:49:15]}
{[%emt 00:02:00]} 30. Kg3 {[%clk 00:51:08]} {[%emt 00:02:53]} Kf8 {[%clk
00:48:37]} {[%emt 00:01:09]} 31. Nf4 {[%clk 00:49:00]} {[%emt 00:02:38]} g6
{[%clk 00:48:57]} {[%emt 00:00:10]} 32. Bd3 {[%clk 00:47:27]} {[%emt 00:02:03]}
Bxd3 {[%clk 00:47:39]} {[%emt 00:01:48]} 33. Nxd3 {[%clk 00:47:55]} {[%emt
00:00:02]} Ke7 {[%clk 00:47:47]} {[%emt 00:00:21]} 34. Kf3 {[%clk 00:47:50]}
{[%emt 00:00:35]} Kd6 {[%clk 00:46:29]} {[%emt 00:01:48]} 35. Ke2 {[%clk
00:46:03]} {[%emt 00:02:17]} b6 {[%clk 00:44:08]} {[%emt 00:02:51]} 36. f4
{[%clk 00:43:59]} {[%emt 00:02:33]} Ke7 {[%clk 00:43:45]} 1/2-1/2

[Event "Juniorallsvenskan 2019, Division 1 and 2"]
[Site "Molnlycke kulturhus, Biblioteksgatan 2, Molnlycke, Sweden"]
[Date "2019.11.23"]
[Round "3.10"]
[White "Crevatin, Leo"]
[Black "Storme, Isak"]
[Result "1/2-1/2"]
[TimeControl "90 minutes + 30 seconds per move from move one"]
[WhiteTitle "CM"]
[BlackTitle "FM"]
[WhiteFideId "1726307"]
[BlackFideId "1728113"]
[WhiteElo "2231"]
[BlackElo "2229"]

1. d4 {[%clk 01:30:59]} {[%emt 00:58:52]} d5 {[%clk 01:30:39]} {[%emt
00:00:21]} 2. c4 {[%clk 01:31:23]} {[%emt 00:00:06]} e6 {[%clk 01:31:04]}
{[%emt 00:00:05]} 3. Nf3 {[%clk 01:31:49]} {[%emt 00:00:04]} c6 {[%clk
01:31:16]} {[%emt 00:00:18]} 4. e3 {[%clk 01:32:11]} {[%emt 00:00:09]} Nf6
{[%clk 01:31:39]} {[%emt 00:00:07]} 5. b3 {[%clk 01:32:40]} {[%emt 00:00:02]}
Bd6 {[%clk 01:31:20]} {[%emt 00:00:48]} 6. Bb2 {[%clk 01:32:45]} {[%emt
00:00:25]} Nbd7 {[%clk 01:31:12]} {[%emt 00:00:38]} 7. Bd3 {[%clk 01:32:30]}
{[%emt 00:00:45]} b6 {[%clk 01:30:31]} {[%emt 00:01:10]} 8. O-O {[%clk
01:30:58]} {[%emt 00:02:02]} Bb7 {[%clk 01:30:29]} {[%emt 00:00:31]} 9. Nbd2
{[%clk 01:30:37]} {[%emt 00:00:51]} O-O {[%clk 01:29:19]} {[%emt 00:01:40]} 10.
Qe2 {[%clk 01:27:15]} {[%emt 00:03:52]} Qe7 {[%clk 01:27:52]} {[%emt 00:01:58]}
11. e4 {[%clk 01:23:23]} {[%emt 00:04:22]} Nxe4 {[%clk 01:28:06]} {[%emt
00:00:16]} 12. Nxe4 {[%clk 01:23:47]} {[%emt 00:00:06]} dxe4 {[%clk 01:28:25]}
{[%emt 00:00:11]} 13. Bxe4 {[%clk 01:22:41]} {[%emt 00:01:36]} Nf6 {[%clk
01:27:30]} {[%emt 00:01:25]} 14. Bc2 {[%clk 01:22:06]} {[%emt 00:01:05]} Ba3
{[%clk 01:27:15]} {[%emt 00:00:43]} 15. Bc3 {[%clk 01:22:17]} {[%emt 00:00:20]}
Bb4 {[%clk 01:27:35]} {[%emt 00:00:11]} 16. Bb2 {[%clk 01:22:28]} {[%emt
00:00:19]} Ba3 {[%clk 01:27:57]} {[%emt 00:00:08]} 17. Bc3 {[%clk 01:22:56]}
{[%emt 00:00:02]} Bb4 {[%clk 01:28:20]} {[%emt 00:00:07]} 18. Bb2 {[%clk
01:21:41]} {[%emt 00:01:45]} Ba3 {[%clk 01:28:38]} {[%emt 00:00:12]} 19. Bc3
{[%clk 01:22:05]} {[%emt 00:00:07]} 1/2-1/2

[Event "Juniorallsvenskan 2019, Division 1 and 2"]
[Site "Molnlycke kulturhus, Biblioteksgatan 2, Molnlycke, Sweden"]
[Date "2019.11.23"]
[Round "3.11"]
[White "Strom-Engdahl, Alexander"]
[Black "Narva, David"]
[Result "1-0"]
[TimeControl "90 minutes + 30 seconds per move from move one"]
[WhiteFideId "1741586"]
[BlackFideId "24128856"]
[WhiteElo "1940"]
[BlackElo "1979"]

1. c4 {[%clk 01:30:05]} {[%emt 00:00:54]} e5 {[%clk 01:30:42]} {[%emt
00:00:19]} 2. Nc3 {[%clk 01:29:50]} {[%emt 00:00:43]} d6 {[%clk 01:31:00]}
{[%emt 00:00:15]} 3. g3 {[%clk 01:29:26]} {[%emt 00:00:53]} f5 {[%clk
01:29:32]} {[%emt 00:01:59]} 4. Bg2 {[%clk 01:29:34]} {[%emt 00:00:21]} Nf6
{[%clk 01:29:47]} {[%emt 00:00:15]} 5. d3 {[%clk 01:29:12]} {[%emt 00:00:52]}
Be7 {[%clk 01:29:57]} {[%emt 00:00:21]} 6. Bd2 {[%clk 01:22:37]} {[%emt
00:07:05]} c6 {[%clk 01:29:33]} {[%emt 00:00:54]} 7. Nf3 {[%clk 01:21:54]}
{[%emt 00:01:13]} Na6 {[%clk 01:25:13]} {[%emt 00:04:51]} 8. a3 {[%clk
01:19:31]} {[%emt 00:02:52]} O-O {[%clk 01:24:12]} {[%emt 00:01:31]} 9. O-O
{[%clk 01:19:32]} {[%emt 00:00:28]} Qe8 {[%clk 01:24:09]} {[%emt 00:00:33]} 10.
b4 {[%clk 01:16:47]} {[%emt 00:03:15]} Qh5 {[%clk 01:20:32]} {[%emt 00:04:06]}
11. e3 {[%clk 01:11:24]} {[%emt 00:05:53]} f4 {[%clk 01:16:23]} {[%emt
00:04:40]} 12. exf4 {[%clk 01:03:23]} {[%emt 00:08:30]} exf4 {[%clk 01:13:31]}
{[%emt 00:03:22]} 13. Re1 {[%clk 01:00:57]} {[%emt 00:02:56]} Rf7 {[%clk
01:11:40]} {[%emt 00:02:21]} 14. Bxf4 {[%clk 00:59:08]} {[%emt 00:02:20]} Bg4
{[%clk 01:08:26]} {[%emt 00:03:44]} 15. h3 {[%clk 00:58:44]} {[%emt 00:00:55]}
Bxf3 {[%clk 01:08:22]} {[%emt 00:00:34]} 16. Qxf3 {[%clk 00:56:37]} {[%emt
00:02:37]} Qxf3 {[%clk 01:05:15]} {[%emt 00:03:37]} 17. Bxf3 {[%clk 00:57:01]}
{[%emt 00:00:05]} Nd7 {[%clk 01:05:04]} {[%emt 00:00:41]} 18. Bg4 {[%clk
00:54:23]} {[%emt 00:03:08]} Nf8 {[%clk 01:03:34]} {[%emt 00:01:58]} 19. Ne4
{[%clk 00:50:29]} {[%emt 00:04:26]} Rd8 {[%clk 00:53:14]} {[%emt 00:10:50]} 20.
Ng5 {[%clk 00:50:00]} {[%emt 00:00:58]} Bxg5 {[%clk 00:53:31]} {[%emt
00:00:14]} 21. Bxg5 {[%clk 00:50:28]} {[%emt 00:00:03]} Ra8 {[%clk 00:53:53]}
{[%emt 00:00:07]} 22. Be7 {[%clk 00:50:22]} {[%emt 00:00:35]} d5 {[%clk
00:54:19]} {[%emt 00:00:04]} 23. cxd5 {[%clk 00:50:40]} {[%emt 00:00:13]} cxd5
{[%clk 00:54:43]} {[%emt 00:00:07]} 24. Bxf8 {[%clk 00:51:06]} Rfxf8 {[%clk
00:55:08]} {[%emt 00:00:07]} 25. Be6+ {[%emt 00:00:07]} Kh8 {[%clk 00:55:35]}
{[%emt 00:00:03]} 26. Bxd5 {[%clk 00:51:55]} {[%emt 00:00:05]} Nc7 {[%clk
00:55:30]} {[%emt 00:00:34]} 27. Bxb7 {[%clk 00:51:55]} {[%emt 00:00:30]} Rad8
{[%emt 00:00:37]} 28. Re7 {[%clk 00:51:27]} {[%emt 00:00:26]} Nb5 {[%clk
00:56:07]} {[%emt 00:00:18]} 29. Ba6 {[%clk 00:51:09]} {[%emt 00:00:44]} Nd4
{[%clk 00:56:25]} {[%emt 00:00:17]} 30. Rxa7 {[%clk 00:50:24]} {[%emt
00:01:15]} Rde8 {[%clk 00:56:50]} {[%emt 00:00:05]} 31. Rd7 {[%clk 00:49:23]}
{[%emt 00:01:31]} Nf3+ {[%emt 00:02:36]} 32. Kg2 {[%clk 00:45:06]} {[%emt
00:03:32]} Re2 33. Rf1 {[%emt 00:05:47]} Ne1+ {[%emt 00:01:43]} 34. Kh1 {[%emt
00:01:52]} Nf3 {[%emt 00:03:20]} 35. d4 {[%clk 00:41:39]} {[%emt 00:00:38]} Rb2
{[%clk 00:47:24]} {[%emt 00:02:12]} 36. Re7 {[%clk 00:40:00]} {[%emt 00:02:09]}
Nxd4 {[%clk 00:47:20]} {[%emt 00:00:35]} 37. Kg2 {[%clk 00:39:14]} {[%emt
00:01:16]} Rb3 {[%clk 00:46:17]} {[%emt 00:01:33]} 38. Re3 {[%clk 00:37:20]}
{[%emt 00:02:21]} Rb2 {[%clk 00:46:01]} {[%emt 00:00:48]} 39. Bd3 {[%clk
00:36:00]} {[%emt 00:01:48]} Rb3 {[%clk 00:43:23]} {[%emt 00:03:10]} 40. Be4
{[%clk 00:33:43]} {[%emt 00:02:45]} Rb2 {[%clk 00:39:56]} {[%emt 00:04:00]} 41.
Rd3 {[%clk 00:32:58]} {[%emt 00:01:13]} Nc2 {[%clk 00:40:12]} {[%emt 00:00:15]}
42. Kg1 {[%clk 00:32:33]} {[%emt 00:00:55]} Ra2 {[%clk 00:37:41]} {[%emt
00:03:01]} 43. Rc1 {[%clk 00:24:53]} {[%emt 00:08:09]} Nxa3 {[%clk 00:37:03]}
{[%emt 00:01:09]} 44. Bd5 {[%clk 00:25:08]} Rc2 {[%clk 00:37:29]} {[%emt
00:00:18]} 45. Rxc2 {[%clk 00:22:22]} Nxc2 46. b5 {[%emt 00:04:00]} Nb4 {[%clk
00:34:37]} {[%emt 00:00:05]} 47. Rd4 {[%emt 00:00:10]} Nxd5 {[%clk 00:33:53]}
{[%emt 00:01:12]} 48. Rxd5 {[%clk 00:23:09]} Rb8 {[%clk 00:33:27]} {[%emt
00:01:00]} 49. b6 {[%clk 00:23:29]} Kg8 {[%clk 00:33:43]} {[%emt 00:00:24]} 50.
Rd6 {[%emt 00:00:48]} Rb7 {[%clk 00:33:22]} {[%emt 00:00:06]} 51. Rc6 {[%emt
00:00:19]} Kf8 {[%clk 00:33:39]} {[%emt 00:00:05]} 52. f4 {[%clk 00:23:32]}
{[%emt 00:01:13]} Ke8 {[%clk 00:33:57]} {[%emt 00:00:13]} 53. f5 {[%clk
00:23:52]} {[%emt 00:00:11]} Kd7 {[%clk 00:33:48]} {[%emt 00:00:38]} 54. Re6
{[%clk 00:24:17]} {[%emt 00:00:05]} Rb8 {[%clk 00:33:07]} {[%emt 00:01:11]} 55.
g4 {[%clk 00:24:19]} {[%emt 00:00:29]} Rc8 {[%clk 00:29:41]} {[%emt 00:03:55]}
56. Kf2 {[%clk 00:22:51]} {[%emt 00:01:59]} Rc2+ {[%clk 00:27:11]} {[%emt
00:03:00]} 57. Re2 {[%clk 00:21:35]} {[%emt 00:01:45]} Rc3 {[%clk 00:27:31]}
{[%emt 00:00:10]} 58. Rb2 {[%clk 00:21:45]} {[%emt 00:00:20]} Kc8 {[%clk
00:27:16]} {[%emt 00:00:45]} 59. b7+ {[%clk 00:22:12]} {[%emt 00:00:04]} Kb8
{[%clk 00:27:40]} {[%emt 00:00:05]} 60. Kg2 {[%clk 00:22:20]} {[%emt 00:00:22]}
Rd3 {[%clk 00:26:01]} {[%emt 00:02:09]} 61. h4 {[%clk 00:22:24]} {[%emt
00:00:26]} h5 {[%clk 00:17:57]} {[%emt 00:08:33]} 62. g5 {[%clk 00:21:56]}
{[%emt 00:00:58]} Rd5 {[%clk 00:17:35]} {[%emt 00:00:51]} 63. f6 {[%clk
00:22:08]} {[%emt 00:00:18]} gxf6 {[%clk 00:18:00]} {[%emt 00:00:05]} 64. gxf6
{[%clk 00:22:35]} {[%emt 00:00:04]} Rd6 {[%clk 00:13:23]} {[%emt 00:05:05]} 65.
f7 {[%clk 00:22:59]} {[%emt 00:00:08]} Rd8 {[%clk 00:13:27]} {[%emt 00:00:25]}
66. Re2 {[%clk 00:23:15]} {[%emt 00:00:14]} Kxb7 {[%clk 00:13:34]} {[%emt
00:00:23]} 67. Re8 {[%clk 00:23:40]} {[%emt 00:00:05]} 1-0

[Event "Juniorallsvenskan 2019, Division 1 and 2"]
[Site "Molnlycke kulturhus, Biblioteksgatan 2, Molnlycke, Sweden"]
[Date "2019.11.23"]
[Round "3.12"]
[White "Berglind, Axel"]
[Black "Lindholm, Gustav"]
[Result "1-0"]
[TimeControl "90 minutes + 30 seconds per move from move one"]
[WhiteFideId "1720228"]
[BlackFideId "1736515"]
[WhiteElo "2062"]
[BlackElo "1922"]

1. d4 {[%clk 01:21:57]} d5 2. Nf3 {[%clk 01:21:57]} Nf6 3. c4 {[%clk 01:21:57]}
c6 4. Nc3 {[%clk 01:21:57]} dxc4 5. a4 {[%clk 01:21:57]} Bf5 6. Ne5 {[%clk
01:21:57]} Nbd7 7. Nxc4 {[%clk 01:21:57]} e6 8. f3 {[%clk 01:21:57]} Bb4 9. Qb3
{[%clk 01:21:57]} a5 10. e4 {[%clk 01:21:57]} Bg6 11. Bg5 {[%clk 01:21:57]} Qc7
12. Be2 {[%clk 01:21:57]} O-O 13. O-O {[%clk 01:21:57]} {[%emt 00:03:53]} c5
{[%clk 01:03:52]} {[%emt 00:05:52]} 14. Nb5 {[%clk 01:21:18]} {[%emt 00:01:09]}
Qc6 {[%clk 01:03:16]} {[%emt 00:01:02]} 15. Ne5 {[%clk 01:16:18]} {[%emt
00:05:33]} Nxe5 {[%clk 00:58:54]} {[%emt 00:04:52]} 16. dxe5 {[%clk 01:16:43]}
{[%emt 00:00:06]} Nd7 {[%clk 00:58:57]} {[%emt 00:00:27]} 17. Bf4 {[%clk
01:15:02]} {[%emt 00:02:11]} Qb6 {[%clk 00:51:51]} {[%emt 00:07:35]} 18. Bc4
{[%clk 01:14:33]} {[%emt 00:01:00]} Nb8 {[%clk 00:49:53]} {[%emt 00:02:28]} 19.
Rad1 {[%clk 01:14:48]} {[%emt 00:00:14]} Nc6 {[%clk 00:48:59]} {[%emt
00:01:23]} 20. Rd6 {[%clk 01:12:48]} {[%emt 00:02:31]} Rad8 {[%clk 00:48:12]}
{[%emt 00:01:17]} 21. Kh1 {[%clk 01:12:01]} {[%emt 00:01:17]} Kh8 {[%clk
00:46:01]} {[%emt 00:02:42]} 22. Rfd1 {[%clk 01:10:31]} {[%emt 00:01:59]} Rxd6
{[%clk 00:43:50]} {[%emt 00:02:41]} 23. exd6 {[%clk 01:08:48]} {[%emt
00:02:14]} e5 {[%clk 00:41:43]} {[%emt 00:02:36]} 24. Bg3 {[%clk 00:56:09]}
{[%emt 00:13:09]} f6 {[%clk 00:40:01]} {[%emt 00:02:12]} 25. Be6 {[%clk
00:46:34]} {[%emt 00:10:05]} Rd8 {[%clk 00:33:42]} {[%emt 00:06:49]} 26. Qd5
{[%clk 00:38:28]} {[%emt 00:08:36]} Nd4 {[%clk 00:32:30]} {[%emt 00:01:42]} 27.
f4 {[%clk 00:37:33]} {[%emt 00:01:25]} Nxb5 {[%clk 00:29:22]} {[%emt 00:03:37]}
28. axb5 {[%clk 00:37:54]} {[%emt 00:00:09]} Qxb5 {[%clk 00:28:23]} {[%emt
00:01:30]} 29. fxe5 {[%clk 00:37:51]} {[%emt 00:00:34]} fxe5 {[%clk 00:28:16]}
{[%emt 00:00:36]} 30. Bxe5 {[%clk 00:36:48]} {[%emt 00:01:33]} Qe2 {[%clk
00:28:09]} {[%emt 00:00:37]} 31. Qd3 {[%clk 00:32:30]} {[%emt 00:04:47]} Qh5
{[%clk 00:23:25]} {[%emt 00:05:13]} 32. Qd5 {[%clk 00:27:59]} {[%emt 00:05:02]}
Qe2 {[%clk 00:23:06]} {[%emt 00:00:50]} 33. Rg1 {[%clk 00:24:29]} {[%emt
00:04:00]} h6 {[%clk 00:09:03]} {[%emt 00:14:34]} 34. Bf5 {[%clk 00:22:51]}
{[%emt 00:02:08]} Bxf5 {[%clk 00:04:47]} {[%emt 00:04:45]} 35. Qf7 {[%clk
00:23:07]} {[%emt 00:00:15]} Rd7 {[%clk 00:03:54]} {[%emt 00:01:23]} 36. Qf8+
{[%clk 00:23:30]} {[%emt 00:00:07]} {clock times until move 13 are wrong} 1-0

[Event "Juniorallsvenskan 2019, Division 1 and 2"]
[Site "Molnlycke kulturhus, Biblioteksgatan 2, Molnlycke, Sweden"]
[Date "2019.11.23"]
[Round "3.13"]
[White "Johansson, Stina"]
[Black "Klosinski, Daniel"]
[Result "0-1"]
[TimeControl "90 minutes + 30 seconds per move from move one"]
[WhiteFideId "1739026"]
[BlackFideId "1726323"]
[WhiteElo "1425"]
[BlackElo "1742"]

1. e4 {[%clk 01:30:59]} {[%emt 00:00:01]} c5 {[%clk 01:30:50]} {[%emt
00:00:10]} 2. Bc4 {[%clk 01:31:08]} {[%emt 00:00:20]} Nc6 {[%clk 01:30:16]}
{[%emt 00:01:05]} 3. Nf3 {[%clk 01:31:12]} {[%emt 00:00:25]} d6 {[%clk
01:30:28]} {[%emt 00:00:19]} 4. b3 {[%clk 01:30:20]} {[%emt 00:01:22]} Bg4
{[%clk 01:28:47]} {[%emt 00:02:11]} 5. Bb2 {[%clk 01:27:39]} {[%emt 00:03:11]}
Nf6 {[%clk 01:28:03]} {[%emt 00:01:13]} 6. Nc3 {[%clk 01:25:58]} {[%emt
00:02:10]} Nd4 {[%clk 01:23:20]} {[%emt 00:05:14]} 7. Rg1 {[%clk 01:23:01]}
{[%emt 00:03:26]} Bxf3 {[%clk 01:21:32]} {[%emt 00:02:19]} 8. gxf3 {[%clk
01:23:04]} {[%emt 00:00:27]} e5 {[%clk 01:21:53]} {[%emt 00:00:09]} 9. Nb5
{[%clk 01:21:34]} {[%emt 00:02:01]} Ne6 {[%clk 01:20:43]} {[%emt 00:01:40]} 10.
Qe2 {[%clk 01:19:16]} {[%emt 00:02:46]} Nf4 {[%clk 01:19:52]} {[%emt 00:01:23]}
11. Qe3 {[%clk 01:17:14]} {[%emt 00:02:31]} g6 {[%clk 01:18:17]} {[%emt
00:02:05]} 12. d4 {[%clk 01:14:46]} {[%emt 00:02:58]} Bh6 {[%clk 01:17:31]}
{[%emt 00:01:16]} 13. Qc3 {[%clk 01:12:00]} {[%emt 00:03:16]} cxd4 {[%clk
01:15:23]} {[%emt 00:02:38]} 14. Qb4 {[%clk 01:10:31]} {[%emt 00:01:59]} O-O
{[%clk 01:04:01]} {[%emt 00:11:52]} 15. Nxd6 {[%clk 01:09:06]} {[%emt
00:01:55]} a5 {[%clk 01:01:09]} {[%emt 00:03:22]} 16. Qc5 {[%clk 01:04:59]}
{[%emt 00:04:36]} Nd7 {[%clk 01:00:09]} {[%emt 00:01:30]} 17. Qb5 {[%clk
01:04:03]} {[%emt 00:01:26]} a4 {[%clk 00:51:28]} {[%emt 00:09:13]} 18. Nf5
{[%clk 01:00:43]} {[%emt 00:03:48]} Bg5 {[%clk 00:48:08]} {[%emt 00:03:51]} 19.
h4 {[%clk 01:00:12]} {[%emt 00:01:01]} Be7 {[%clk 00:46:18]} {[%emt 00:02:18]}
20. Bc1 {[%clk 00:56:42]} {[%emt 00:04:02]} axb3 {[%clk 00:40:54]} {[%emt
00:05:54]} 21. Qxb3 {[%clk 00:53:27]} {[%emt 00:03:45]} Nc5 {[%clk 00:39:48]}
{[%emt 00:01:36]} 22. Bxf7+ {[%clk 00:50:35]} {[%emt 00:03:22]} Kh8 {[%clk
00:39:54]} {[%emt 00:00:23]} 23. Qc4 {[%clk 00:43:47]} {[%emt 00:07:19]} Ra4
{[%clk 00:38:45]} {[%emt 00:01:40]} 24. Qb5 {[%clk 00:41:46]} {[%emt 00:02:30]}
Rxf7 {[%clk 00:37:59]} {[%emt 00:01:15]} 25. Nh6 {[%clk 00:40:26]} {[%emt
00:01:50]} Rf8 {[%clk 00:36:21]} {[%emt 00:02:07]} 26. Bd2 {[%clk 00:39:56]}
{[%emt 00:01:01]} Qd7 {[%clk 00:35:51]} {[%emt 00:01:00]} 27. Qxd7 {[%clk
00:38:58]} {[%emt 00:01:29]} Nxd7 {[%clk 00:36:16]} {[%emt 00:00:04]} 28. Rb1
{[%clk 00:38:38]} {[%emt 00:00:50]} Nc5 {[%clk 00:34:48]} {[%emt 00:01:58]} 29.
Ng4 {[%clk 00:38:39]} {[%emt 00:00:28]} Bd6 {[%clk 00:34:52]} {[%emt 00:00:25]}
30. Rb6 {[%clk 00:37:25]} {[%emt 00:01:46]} Bc7 {[%clk 00:33:29]} {[%emt
00:01:52]} 31. Rb5 {[%clk 00:37:30]} {[%emt 00:00:26]} b6 {[%clk 00:33:15]}
{[%emt 00:00:45]} 32. Bb4 {[%clk 00:36:50]} {[%emt 00:01:10]} Rxb4 {[%clk
00:27:38]} {[%emt 00:06:07]} 33. Rxb4 {[%clk 00:37:09]} {[%emt 00:00:10]} Ncd3+
{[%clk 00:27:59]} {[%emt 00:00:10]} 34. cxd3 {[%clk 00:37:28]} {[%emt
00:00:11]} Nxd3+ {[%clk 00:28:20]} {[%emt 00:00:08]} 35. Ke2 {[%clk 00:37:47]}
{[%emt 00:00:11]} Nxb4 {[%clk 00:28:24]} {[%emt 00:00:27]} 36. Rc1 {[%clk
00:37:48]} {[%emt 00:00:28]} Rf7 {[%clk 00:27:54]} {[%emt 00:00:59]} 37. a3
{[%clk 00:37:35]} {[%emt 00:00:45]} Na2 {[%clk 00:28:11]} {[%emt 00:00:12]} 38.
Rc2 {[%clk 00:37:25]} {[%emt 00:00:40]} Nc3+ {[%clk 00:28:31]} {[%emt
00:00:11]} 39. Kd3 {[%clk 00:37:34]} {[%emt 00:00:20]} Rxf3+ {[%clk 00:28:43]}
{[%emt 00:00:19]} 40. Kc4 {[%clk 00:37:47]} {[%emt 00:00:17]} Nxe4 {[%clk
00:28:34]} {[%emt 00:00:39]} 41. Kd5 {[%clk 00:37:39]} {[%emt 00:00:38]} Nc3+
{[%clk 00:28:24]} {[%emt 00:00:40]} 42. Kc6 {[%clk 00:37:17]} {[%emt 00:00:52]}
Rf7 {[%clk 00:28:07]} {[%emt 00:00:47]} 43. Nh6 {[%clk 00:36:13]} {[%emt
00:01:33]} Re7 {[%clk 00:28:23]} {[%emt 00:00:13]} 44. f3 {[%clk 00:36:22]}
{[%emt 00:00:22]} Kg7 {[%clk 00:28:21]} {[%emt 00:00:32]} 45. Ng4 {[%clk
00:36:39]} {[%emt 00:00:13]} Kf7 {[%clk 00:27:43]} {[%emt 00:01:08]} 46. Nh6+
{[%clk 00:36:27]} {[%emt 00:00:42]} Ke6 {[%clk 00:27:12]} {[%emt 00:01:00]} 47.
Rc1 {[%clk 00:36:10]} {[%emt 00:00:49]} Bd8 {[%clk 00:27:15]} {[%emt 00:00:26]}
48. Re1 {[%clk 00:35:55]} {[%emt 00:00:46]} Rc7+ {[%clk 00:26:28]} {[%emt
00:01:16]} 49. Kxb6 {[%clk 00:36:11]} {[%emt 00:00:14]} Rc4+ {[%clk 00:25:33]}
{[%emt 00:01:24]} 50. Kb7 {[%clk 00:36:22]} {[%emt 00:00:20]} d3 {[%clk
00:25:18]} {[%emt 00:00:44]} 51. f4 {[%clk 00:35:35]} {[%emt 00:01:18]} Rxf4
{[%clk 00:25:13]} {[%emt 00:00:35]} 52. Rc1 {[%clk 00:35:35]} {[%emt 00:00:30]}
d2 {[%clk 00:25:29]} {[%emt 00:00:14]} 53. Rxc3 {[%clk 00:35:53]} {[%emt
00:00:12]} d1=Q {[%clk 00:25:47]} {[%emt 00:00:12]} 54. Rc6+ {[%clk 00:36:16]}
{[%emt 00:00:07]} Kd5 {[%clk 00:26:02]} {[%emt 00:00:15]} 55. Rc8 {[%clk
00:36:18]} {[%emt 00:00:28]} Qb3+ {[%clk 00:26:20]} {[%emt 00:00:12]} 56. Ka6
{[%clk 00:36:27]} {[%emt 00:00:22]} Ra4# {[%clk 00:26:44]} {[%emt 00:00:05]}
0-1